fUSD/lending_fUSD_20240919
["ID","MTS","AMOUNT","RATE_DAILY","PERIOD"]
[338538682,1726725038715,-1817.27,0.00012894,2]
[338538684,1726725038724,-500.0,0.00012894,2]
[338538686,1726725038734,-500.0,0.00012894,2]
[338538688,1726725038744,-612.05,0.00012894,2]
[338538690,1726725038753,-500.0,0.00012894,2]
[338538692,1726725038763,-500.0,0.00012894,2]
[338538694,1726725038772,-1153.9,0.00012894,2]
[338538696,1726725038781,-504.17,0.00012894,2]
[338538698,1726725038791,-1246.68,0.00012894,2]
[338538700,1726725038801,-533.27,0.00012894,2]
[338538702,1726725038810,-1367.48,0.00012894,2]
[338538704,1726725038820,-1055.05,0.00012894,2]
[338538706,1726725038829,-500.0,0.00012894,2]
[338538708,1726725038839,-500.0,0.00012894,2]
[338538710,1726725038849,-500.0,0.00012894,2]
[338538712,1726725038859,-500.0,0.00012894,2]
[338538714,1726725038868,-500.0,0.00012894,2]
[338538716,1726725038878,-500.0,0.00012894,2]
[338538718,1726725038888,-766.98,0.00012894,2]
[338538720,1726725038898,-2081.26,0.00012894,2]
[338538722,1726725038908,-500.0,0.00012894,2]
[338538724,1726725038917,-2967.86,0.00012894,2]
[338538726,1726725038926,-2845.84,0.00012894,2]
[338538728,1726725038936,-500.0,0.00012894,2]
[338538730,1726725038947,-1251.57,0.00012894,2]
[338538732,1726725038956,-1009.32,0.00012894,2]
[338538734,1726725038966,-1368.47,0.00012894,2]
[338538736,1726725038975,-500.0,0.00012894,2]
[338538738,1726725038985,-500.0,0.00012894,2]
[338538740,1726725038995,-587.02,0.00012894,2]
[338538742,1726725039004,-500.0,0.00012894,2]
[338538744,1726725039014,-500.0,0.00012894,2]
[338538746,1726725039023,-1460.96,0.00012894,2]
[338538748,1726725039033,-894.7,0.00012894,2]
[338538750,1726725039042,-1433.31,0.00012894,2]
[338538752,1726725039051,-568.5,0.00012894,2]
[338538754,1726725039063,-2128.96,0.00012894,2]
[338538756,1726725039075,-652.4,0.00012894,2]
[338538758,1726725039085,-814.33,0.00012894,2]
[338538760,1726725039094,-1800.87,0.00012894,2]
[338538762,1726725039103,-500.0,0.00012894,2]
[338538764,1726725039112,-4900.23,0.00012894,2]
[338538766,1726725039122,-500.0,0.00012894,2]
[338538768,1726725039131,-6614.97,0.00012894,2]
[338538770,1726725039140,-500.0,0.00012894,2]
[338538772,1726725039149,-907.19,0.00012894,2]
[338538774,1726725039159,-1061.27,0.00012894,2]
[338538776,1726725039168,-1949.61,0.00012894,2]
[338538778,1726725039178,-1023.36,0.00012894,2]
[338538780,1726725039187,-565.68,0.00012894,2]
[338538782,1726725039197,-500.0,0.00012894,2]
[338538784,1726725039207,-500.0,0.00012894,2]
[338538786,1726725039216,-910.9,0.00012894,2]
[338538788,1726725039225,-777.89,0.00012894,2]
[338538790,1726725039234,-500.0,0.00012894,2]
[338538792,1726725039243,-500.0,0.00012894,2]
[338538794,1726725039253,-500.0,0.00012894,2]
[338538796,1726725039262,-500.0,0.00012894,2]
[338538798,1726725039271,-549.9,0.00012894,2]
[338538800,1726725039280,-500.0,0.00012894,2]
[338538802,1726725039290,-639.58,0.00012894,2]
[338538804,1726725039299,-519.94,0.00012894,2]
[338538806,1726725039308,-644.22,0.00012894,2]
[338538808,1726725039318,-500.0,0.00012894,2]
[338538810,1726725039327,-500.0,0.00012894,2]
[338538812,1726725039336,-500.0,0.00012894,2]
[338538814,1726725039346,-500.0,0.00012894,2]
[338538816,1726725039359,-500.0,0.00012894,2]
[338538818,1726725039368,-1500.96,0.00012894,2]
[338538820,1726725039377,-500.0,0.00012894,2]
[338538822,1726725039386,-1190.27,0.00012894,2]
[338538824,1726725039396,-601.14,0.00012894,2]
[338538826,1726725039407,-500.86536113,0.00012894,2]
[338538828,1726725039416,-500.0,0.00012894,2]
[338538830,1726725039427,-15741.53,0.00012894,2]
[338538832,1726725039436,-954.87,0.00012894,2]
[338538834,1726725039445,-507.27,0.00012894,2]
[338538836,1726725039455,-1107.52,0.00012894,2]
[338538838,1726725039464,-1296.72,0.00012894,2]
[338538840,1726725039473,-500.0,0.00012894,2]
[338538842,1726725039483,-500.0,0.00012894,2]
[338538844,1726725039492,-500.0,0.00012894,2]
[338538846,1726725039501,-500.0,0.00012894,2]
[338538848,1726725039510,-500.0,0.00012894,2]
[338538850,1726725039520,-500.0,0.00012894,2]
[338538852,1726725039529,-752.38,0.00012894,2]
[338538854,1726725039539,-500.0,0.00012894,2]
[338538856,1726725039549,-1727.04,0.00012894,2]
[338538857,1726725039558,-500.0,0.00012894,2]
[338538859,1726725039568,-5605.1,0.00012894,2]
[338538861,1726725039577,-633.16,0.00012894,2]
[338538863,1726725039587,-3512.43,0.00012894,2]
[338538866,1726725039596,-4397.17,0.00012894,2]
[338538868,1726725039606,-34808.64,0.00012894,2]
[338538870,1726725039616,-500.0,0.00012894,2]
[338538872,1726725039625,-823.53,0.00012894,2]
[338538874,1726725039635,-1314.13,0.00012894,2]
[338538876,1726725039644,-1964.76,0.00012894,2]
[338538878,1726725039654,-500.0,0.00012894,2]
[338538880,1726725039663,-500.0,0.00012894,2]
[338538882,1726725039673,-512.18,0.00012894,2]
[338538884,1726725039683,-500.0,0.00012894,2]
[338538886,1726725039692,-1089.54,0.00012894,2]
[338538888,1726725039702,-500.0,0.00012894,2]
[338538890,1726725039712,-500.0,0.00012894,2]
[338538893,1726725039722,-500.0,0.00012894,2]
[338538896,1726725039732,-500.0,0.00012894,2]
[338538899,1726725039741,-3366.97,0.00012894,2]
[338538901,1726725039750,-656.57,0.00012894,2]
[338538903,1726725039760,-500.0,0.00012894,2]
[338538905,1726725039769,-500.0,0.00012894,2]
[338538907,1726725039778,-608.89,0.00012894,2]
[338538909,1726725039787,-500.0,0.00012894,2]
[338538911,1726725039797,-500.0,0.00012894,2]
[338538913,1726725039806,-500.0,0.00012894,2]
[338538915,1726725039815,-2090.85,0.00012894,2]
[338538917,1726725039824,-1303.77,0.00012894,2]
[338538919,1726725039834,-2993.56,0.00012894,2]
[338538921,1726725039843,-500.0,0.00012894,2]
[338538923,1726725039854,-500.0,0.00012894,2]
[338538925,1726725039864,-1090.99,0.00012894,2]
[338538927,1726725039874,-3768.03,0.00012894,2]
[338538929,1726725039884,-500.0,0.00012894,2]
[338538931,1726725039893,-4488.43,0.00012894,2]
[338538933,1726725039902,-500.0,0.00012894,2]
[338538935,1726725039912,-1048.11,0.00012894,2]
[338538937,1726725039921,-665.19,0.00012894,2]
[338538939,1726725039931,-550.63,0.00012894,2]
[338538941,1726725039939,-500.0,0.00012894,2]
[338538943,1726725039948,-8348.32,0.00012894,2]
[338538945,1726725039958,-500.0,0.00012894,2]
[338538947,1726725039967,-521.8,0.00012894,2]
[338538949,1726725039976,-2816.81,0.00012894,2]
[338538951,1726725039986,-1549.33,0.00012894,2]
[338538953,1726725039995,-502.09,0.00012894,2]
[338538955,1726725040004,-3732.67,0.00012894,2]
[338538957,1726725040013,-3642.35,0.00012894,2]
[338538959,1726725040022,-381.74603888,0.00012894,2]
[338538961,1726725040032,-500.0,0.00012894,2]
[338538963,1726725040041,-500.0,0.00012894,2]
[338538965,1726725040050,-586.28,0.00012894,2]
[338538967,1726725040059,-500.0,0.00012894,2]
[338538969,1726725040068,-10060.21,0.00012894,2]
[338538971,1726725040077,-1509.5,0.00012894,2]
[338538973,1726725040087,-500.0,0.00012894,2]
[338538975,1726725040096,-500.0,0.00012894,2]
[338538977,1726725040105,-500.0,0.00012894,2]
[338538979,1726725040114,-579.65,0.00012894,2]
[338538981,1726725040123,-955.77,0.00012894,2]
[338538983,1726725040133,-5155.63,0.00012894,2]
[338538985,1726725040142,-412.74878825,0.00012894,2]
[338538987,1726725040151,-2515.66,0.00012894,2]
[338538989,1726725040160,-500.0,0.00012894,2]
[338538990,1726725040169,-1112.87,0.00012894,2]
[338538992,1726725040178,-542.28,0.00012894,2]
[338538994,1726725040187,-4311.34,0.00012894,2]
[338538996,1726725040197,-500.0,0.00012894,2]
[338538998,1726725040206,-1771.33,0.00012894,2]
[338539000,1726725040215,-500.0,0.00012894,2]
[338539002,1726725040224,-500.0,0.00012894,2]
[338539004,1726725040234,-5149.34,0.00012894,2]
[338539006,1726725040243,-500.0,0.00012894,2]
[338539008,1726725040252,-1485.03,0.00012894,2]
[338539010,1726725040261,-906.53,0.00012894,2]
[338539012,1726725040270,-500.0,0.00012894,2]
[338539014,1726725040279,-6582.54,0.00012894,2]
[338539016,1726725040289,-668.15,0.00012894,2]
[338539018,1726725040298,-500.0,0.00012894,2]
[338539020,1726725040307,-3114.78,0.00012894,2]
[338539022,1726725040316,-2979.56,0.00012894,2]
[338539024,1726725040325,-1397.76,0.00012894,2]
[338539026,1726725040336,-500.0,0.00012894,2]
[338539028,1726725040345,-2882.92,0.00012894,2]
[338539030,1726725040358,-1728.49,0.00012894,2]
[338539031,1726725040367,-500.0,0.00012894,2]
[338539033,1726725040377,-500.0,0.00012894,2]
[338539035,1726725040386,-1841.8,0.00012894,2]
[338539037,1726725040396,-500.0,0.00012894,2]
[338539039,1726725040405,-2100.08,0.00012894,2]
[338539041,1726725040414,-1237.2,0.00012894,2]
[338539043,1726725040425,-648.31,0.00012894,2]
[338539045,1726725040435,-500.0,0.00012894,2]
[338539047,1726725040444,-500.0,0.00012894,2]
[338539049,1726725040453,-3206.26,0.00012894,2]
[338539051,1726725040462,-500.0,0.00012894,2]
[338539053,1726725040471,-537.04,0.00012894,2]
[338539055,1726725040480,-527.51,0.00012894,2]
[338539057,1726725040489,-1801.46,0.00012894,2]
[338539059,1726725040499,-3108.2,0.00012894,2]
[338539061,1726725040508,-503.3,0.00012894,2]
[338539063,1726725040517,-500.0,0.00012894,2]
[338539065,1726725040526,-500.0,0.00012894,2]
[338539067,1726725040535,-777.35,0.00012894,2]
[338539069,1726725040545,-1076.66,0.00012894,2]
[338539071,1726725040554,-1884.76,0.00012894,2]
[338539073,1726725040563,-183.2786257,0.00012894,2]
[338539075,1726725040572,-500.0,0.00012894,2]
[338539077,1726725040581,-3883.8,0.00012894,2]
[338539079,1726725040591,-4458.11,0.00012894,2]
[338539081,1726725040600,-500.0,0.00012894,2]
[338539083,1726725040609,-604.78,0.00012894,2]
[338539085,1726725040618,-500.0,0.00012894,2]
[338539087,1726725040627,-2289.75,0.00012894,2]
[338539089,1726725040636,-677.04,0.00012894,2]
[338539091,1726725040645,-3173.6,0.00012894,2]
[338539093,1726725040654,-1510.02,0.00012894,2]
[338539095,1726725040663,-1204.11,0.00012894,2]
[338539097,1726725040674,-1869.47,0.00012894,2]
[338539099,1726725040684,-500.0,0.00012894,2]
[338539100,1726725040693,-863.35,0.00012894,2]
[338539101,1726725040702,-2636.43,0.00012894,2]
[338539102,1726725040711,-540.86,0.00012894,2]
[338539103,1726725040720,-500.0,0.00012894,2]
[338539104,1726725040729,-4946.74,0.00012894,2]
[338539105,1726725040739,-500.0,0.00012895,2]
[338539106,1726725040748,-500.0,0.00012895,2]
[338539107,1726725040757,-500.0,0.00012895,2]
[338539108,1726725040768,-595.5,0.00012895,2]
[338539109,1726725040777,-220.05,0.00012895,2]
[338539110,1726725040787,-236.59,0.00012895,2]
[338539111,1726725040797,-538.93,0.00012895,2]
[338539112,1726725040806,-515.78,0.00012895,2]
[338539113,1726725040815,-733.78,0.00012895,2]
[338539114,1726725040824,-500.0,0.00012895,2]
[338539115,1726725040834,-500.0,0.00012895,2]
[338539116,1726725040843,-500.0,0.00012895,2]
[338539117,1726725040852,-500.0,0.00012895,2]
[338539118,1726725040862,-250.47,0.00012895,2]
[338539119,1726725040871,-500.0,0.00012895,2]
[338539120,1726725040881,-593.71,0.00012895,2]
[338539121,1726725040890,-701.58,0.00012895,2]
[338539122,1726725040899,-500.0,0.00012895,2]
[338539123,1726725040908,-500.0,0.00012895,2]
[338539124,1726725040917,-500.0,0.00012895,2]
[338539125,1726725040926,-500.0,0.00012895,2]
[338539126,1726725040935,-314.72,0.00012895,2]
[338539127,1726725040944,-885.44,0.00012895,2]
[338539128,1726725040954,-500.0,0.00012895,2]
[338539129,1726725040963,-500.0,0.00012895,2]
[338539130,1726725040972,-500.0,0.00012895,2]
[338539131,1726725040981,-788.03,0.00012895,2]
[338539132,1726725040990,-500.0,0.00012895,2]
[338539133,1726725040999,-500.0,0.00012895,2]
[338539134,1726725041008,-500.0,0.00012895,2]
[338539135,1726725041018,-500.0,0.00012895,2]
[338539136,1726725041027,-500.0,0.00012895,2]
[338539137,1726725041037,-914.76,0.00012895,2]
[338539138,1726725041046,-919.01,0.00012895,2]
[338539139,1726725041055,-1400.5,0.00012895,2]
[338539140,1726725041064,-323.73,0.00012895,2]
[338539141,1726725041073,-500.0,0.00012895,2]
[338539142,1726725041083,-500.0,0.00012895,2]
[338539143,1726725041092,-500.0,0.00012895,2]
[338539144,1726725041101,-993.07,0.00012895,2]
[338539145,1726725041110,-576.00990192,0.00012895,2]
[338539146,1726725041119,-2458.62,0.00012895,2]
[338539147,1726725041129,-500.0,0.00012895,2]
[338539148,1726725041138,-500.0,0.00012895,2]
[338539149,1726725041147,-500.0,0.00012895,2]
[338539150,1726725041156,-500.0,0.00012895,2]
[338539151,1726725041166,-494.65821271,0.00012895,2]
[338539152,1726725041175,-1255.88,0.00012895,2]
[338539153,1726725041185,-1887.09,0.00012895,2]
[338539154,1726725041194,-1000.0,0.00012895,2]
[338539155,1726725041204,-859.28,0.00012895,2]
[338539156,1726725041213,-1475.06,0.00012895,2]
[338539158,1726725041222,-1196.0,0.00012895,2]
[338539159,1726725041231,-522.96,0.00012895,2]
[338539161,1726725041240,-500.0,0.00012895,2]
[338539162,1726725041250,-660.57,0.00012895,2]
[338539163,1726725041259,-373.76486592,0.00012895,2]
[338539164,1726725041268,-730.67,0.00012895,2]
[338539165,1726725041277,-757.07,0.00012895,2]
[338539167,1726725041287,-500.0,0.00012895,2]
[338539168,1726725041296,-583.26,0.00012895,2]
[338539169,1726725041305,-500.0,0.00012895,2]
[338539170,1726725041314,-500.0,0.00012895,2]
[338539171,1726725041324,-500.0,0.00012895,2]
[338539172,1726725041334,-1796.44,0.00012895,2]
[338539173,1726725041343,-1368.16,0.00012895,2]
[338539175,1726725041360,-398.17,0.00012895,2]
[338539177,1726725041369,-526.24,0.00012895,2]
[338539179,1726725041379,-2368.75,0.00012895,2]
[338539180,1726725041388,-1205.94,0.00012895,2]
[338539181,1726725041398,-1069.58,0.00012895,2]
[338539182,1726725041407,-231.11690135,0.00012895,2]
[338539183,1726725041417,-500.0,0.00012895,2]
[338539184,1726725041426,-500.0,0.00012895,2]
[338539185,1726725041447,-500.0,0.00012895,2]
[338539186,1726725041456,-500.0,0.00012895,2]
[338539187,1726725041466,-555.45,0.00012895,2]
[338539188,1726725041476,-500.0,0.00012895,2]
[338539189,1726725041485,-500.0,0.00012895,2]
[338539190,1726725041494,-1000.76,0.00012895,2]
[338539191,1726725041503,-1042.59,0.00012895,2]
[338539192,1726725041512,-500.0,0.00012895,2]
[338539193,1726725041520,-500.0,0.00012895,2]
[338539194,1726725041530,-500.0,0.00012895,2]
[338539195,1726725041539,-500.0,0.00012895,2]
[338539196,1726725041548,-656.38,0.00012895,2]
[338539197,1726725041557,-500.0,0.00012895,2]
[338539198,1726725041566,-1751.98,0.00012895,2]
[338539199,1726725041575,-1703.06,0.00012895,2]
[338539200,1726725041584,-500.0,0.00012895,2]
[338539201,1726725041593,-1405.66,0.00012895,2]
[338539202,1726725041603,-1356.03,0.00012895,2]
[338539203,1726725041612,-1276.93,0.00012895,2]
[338539204,1726725041622,-936.97,0.00012895,2]
[338539205,1726725041631,-652.7,0.00012895,2]
[338539206,1726725041641,-500.0,0.00012895,2]
[338539207,1726725041650,-500.0,0.00012895,2]
[338539208,1726725041659,-500.0,0.00012895,2]
[338539209,1726725041668,-1763.62,0.00012895,2]
[338539210,1726725041678,-500.0,0.00012895,2]
[338539211,1726725041687,-1493.73,0.00012895,2]
[338539212,1726725041697,-500.0,0.00012895,2]
[338539213,1726725041706,-583.51,0.00012895,2]
[338539214,1726725041715,-500.0,0.00012895,2]
[338539215,1726725041724,-500.0,0.00012895,2]
[338539216,1726725041733,-832.11,0.00012895,2]
[338539217,1726725041743,-500.0,0.00012895,2]
[338539218,1726725041751,-500.0,0.00012895,2]
[338539219,1726725041760,-1358.64,0.00012895,2]
[338539220,1726725041769,-500.0,0.00012895,2]
[338539221,1726725041779,-522.75,0.00012895,2]
[338539222,1726725041788,-500.0,0.00012895,2]
[338539223,1726725041797,-742.67,0.00012895,2]
[338539224,1726725041806,-500.0,0.00012895,2]
[338539225,1726725041815,-1741.16,0.00012895,2]
[338539226,1726725041824,-500.0,0.00012895,2]
[338539227,1726725041833,-602.78,0.00012895,2]
[338539228,1726725041842,-502.73,0.00012895,2]
[338539229,1726725041852,-1842.26,0.00012895,2]
[338539230,1726725041861,-606.38,0.00012895,2]
[338539232,1726725041870,-715.06,0.00012895,2]
[338539233,1726725041879,-500.0,0.00012895,2]
[338539235,1726725041888,-837.17,0.00012895,2]
[338539237,1726725041897,-650.32,0.00012895,2]
[338539239,1726725041906,-1259.34,0.00012895,2]
[338539241,1726725041915,-520.38,0.00012895,2]
[338539243,1726725041925,-550.22,0.00012895,2]
[338539245,1726725041946,-1114.69,0.00012895,2]
[338539247,1726725041956,-1001.64,0.00012895,2]
[338539249,1726725041965,-500.0,0.00012895,2]
[338539251,1726725041974,-500.0,0.00012895,2]
[338539253,1726725041983,-1875.97,0.00012895,2]
[338539255,1726725041992,-500.0,0.00012895,2]
[338539257,1726725042001,-500.0,0.00012895,2]
[338539259,1726725042010,-500.0,0.00012895,2]
[338539261,1726725042020,-500.0,0.00012895,2]
[338539263,1726725042029,-500.0,0.00012895,2]
[338539264,1726725042039,-500.0,0.00012895,2]
[338539266,1726725042048,-500.0,0.00012895,2]
[338539268,1726725042058,-500.0,0.00012895,2]
[338539270,1726725042067,-1336.45,0.00012895,2]
[338539272,1726725042076,-589.7708271,0.00012895,2]
[338539274,1726725042085,-1490.15,0.00012895,2]
[338539276,1726725042095,-500.0,0.00012895,2]
[338539278,1726725042104,-500.0,0.00012895,2]
[338539280,1726725042113,-536.13,0.00012895,2]
[338539282,1726725042122,-500.0,0.00012895,2]
[338539283,1726725042131,-500.0,0.00012895,2]
[338539285,1726725042142,-500.0,0.00012895,2]
[338539287,1726725042151,-500.0,0.00012895,2]
[338539289,1726725042160,-714.66,0.00012895,2]
[338539291,1726725042169,-1014.26,0.00012895,2]
[338539293,1726725042179,-500.0,0.00012895,2]
[338539295,1726725042188,-608.78,0.00012895,2]
[338539297,1726725042198,-500.0,0.00012895,2]
[338539299,1726725042207,-500.0,0.00012895,2]
[338539301,1726725042216,-791.68,0.00012895,2]
[338539303,1726725042226,-500.0,0.00012895,2]
[338539305,1726725042237,-540.46,0.00012895,2]
[338539307,1726725042247,-669.64,0.00012895,2]
[338539309,1726725042257,-500.0,0.00012895,2]
[338539311,1726725042266,-610.22,0.00012895,2]
[338539313,1726725042275,-500.0,0.00012895,2]
[338539315,1726725042288,-1186.94,0.00012895,2]
[338539317,1726725042298,-500.0,0.00012895,2]
[338539320,1726725042308,-500.0,0.00012895,2]
[338539322,1726725042318,-500.0,0.00012895,2]
[338539324,1726725042327,-2280.81,0.00012895,2]
[338539326,1726725042337,-1072.04,0.00012895,2]
[338539328,1726725042347,-500.0,0.00012895,2]
[338539330,1726725042359,-500.0,0.00012895,2]
[338539332,1726725042371,-1599.08,0.00012895,2]
[338539334,1726725042381,-548.02,0.00012895,2]
[338539336,1726725042391,-700.68,0.00012895,2]
[338539338,1726725042401,-1650.78,0.00012895,2]
[338539340,1726725042410,-500.0,0.00012895,2]
[338539342,1726725042420,-637.17,0.00012895,2]
[338539361,1726725042587,-1669.82,0.00012895,2]
[338539363,1726725042598,-1582.65,0.00012895,2]
[338539365,1726725042609,-782.65,0.00012895,2]
[338539367,1726725042619,-1002.34,0.00012895,2]
[338539369,1726725042629,-1598.32,0.00012895,2]
[338539371,1726725042639,-500.0,0.00012895,2]
[338539373,1726725042649,-1633.31,0.00012895,2]
[338539375,1726725042659,-1262.3,0.00012895,2]
[338539378,1726725042669,-500.0,0.00012895,2]
[338539380,1726725042679,-500.0,0.00012895,2]
[338539382,1726725042689,-500.0,0.00012895,2]
[338539384,1726725042699,-500.0,0.00012895,2]
[338539386,1726725042709,-411.40697422,0.00012895,2]
[338539388,1726725042719,-500.0,0.00012895,2]
[338539390,1726725042730,-644.0,0.00012895,2]
[338539392,1726725042740,-500.0,0.00012895,2]
[338539394,1726725042750,-1451.15,0.00012895,2]
[338539396,1726725042760,-913.9,0.00012895,2]
[338539398,1726725042770,-500.0,0.00012895,2]
[338539400,1726725042779,-705.56,0.00012895,2]
[338539402,1726725042789,-1001.07,0.00012895,2]
[338539404,1726725042799,-5778.95,0.00012895,2]
[338539406,1726725042809,-1212.59,0.00012895,2]
[338539408,1726725042819,-4752.48,0.00012895,2]
[338539410,1726725042828,-500.0,0.00012895,2]
[338539412,1726725042838,-500.0,0.00012895,2]
[338539414,1726725042847,-2149.61,0.00012895,2]
[338539416,1726725042857,-1031.89,0.00012895,2]
[338539418,1726725042866,-500.0,0.00012895,2]
[338539420,1726725042876,-1097.49,0.00012895,2]
[338539422,1726725042886,-864.97,0.00012895,2]
[338539424,1726725042895,-3171.17,0.00012895,2]
[338539426,1726725042905,-1156.73,0.00012895,2]
[338539428,1726725042915,-497.99,0.00012895,2]
[338539430,1726725042924,-848.59,0.00012895,2]
[338539432,1726725042935,-987.67,0.00012895,2]
[338539434,1726725042946,-2253.7,0.00012895,2]
[338539436,1726725042955,-500.0,0.00012895,2]
[338539438,1726725042966,-2053.93,0.00012895,2]
[338539440,1726725042975,-764.45,0.00012895,2]
[338539442,1726725042985,-702.58,0.00012895,2]
[338539444,1726725042995,-1119.44,0.00012895,2]
[338539446,1726725043005,-500.0,0.00012895,2]
[338539448,1726725043015,-3407.75,0.00012895,2]
[338539450,1726725043025,-853.92,0.00012895,2]
[338539451,1726725043036,-1190.2,0.00012895,2]
[338539453,1726725043046,-1363.26,0.00012895,2]
[338539455,1726725043056,-3476.8,0.00012895,2]
[338539457,1726725043066,-635.25,0.00012895,2]
[338539459,1726725043076,-500.0,0.00012895,2]
[338539461,1726725043086,-680.97,0.00012895,2]
[338539463,1726725043096,-1148.94,0.00012895,2]
[338539465,1726725043105,-1600.67,0.00012895,2]
[338539467,1726725043115,-500.0,0.00012895,2]
[338539469,1726725043125,-500.0,0.00012895,2]
[338539471,1726725043134,-500.0,0.00012895,2]
[338539473,1726725043144,-500.0,0.00012895,2]
[338539475,1726725043154,-528.18,0.00012895,2]
[338539477,1726725043163,-1008.28,0.00012895,2]
[338539479,1726725043173,-1516.61,0.00012895,2]
[338539481,1726725043183,-500.0,0.00012895,2]
[338539483,1726725043193,-1450.74,0.00012895,2]
[338539485,1726725043204,-500.0,0.00012895,2]
[338539487,1726725043214,-693.07,0.00012895,2]
[338539489,1726725043224,-500.0,0.00012895,2]
[338539492,1726725043234,-940.61,0.00012895,2]
[338539494,1726725043243,-500.0,0.00012895,2]
[338539496,1726725043252,-500.0,0.00012895,2]
[338539498,1726725043263,-500.0,0.00012895,2]
[338539500,1726725043273,-500.0,0.00012895,2]
[338539502,1726725043282,-724.01,0.00012895,2]
[338539504,1726725043291,-500.0,0.00012895,2]
[338539506,1726725043301,-500.0,0.00012895,2]
[338539508,1726725043310,-916.59,0.00012895,2]
[338539510,1726725043320,-500.0,0.00012895,2]
[338539512,1726725043330,-920.07,0.00012895,2]
[338539514,1726725043339,-500.0,0.00012895,2]
[338539516,1726725043351,-500.0,0.00012895,2]
[338539518,1726725043361,-500.0,0.00012895,2]
[338539520,1726725043371,-896.4,0.00012895,2]
[338539522,1726725043380,-500.0,0.00012895,2]
[338539524,1726725043389,-1066.93,0.00012895,2]
[338539526,1726725043401,-500.0,0.00012895,2]
[338539528,1726725043410,-281.86313371,0.00012896,2]
[338539530,1726725043420,-500.0,0.00012896,2]
[338539532,1726725043431,-500.0,0.00012896,2]
[338539534,1726725043440,-500.0,0.00012896,2]
[338539536,1726725043449,-897.37,0.00012896,2]
[338539538,1726725043459,-856.99,0.00012896,2]
[338539540,1726725043468,-1088.39,0.00012896,2]
[338539542,1726725043478,-548.99,0.00012896,2]
[338539544,1726725043487,-500.0,0.00012896,2]
[338539546,1726725043497,-500.0,0.00012896,2]
[338539548,1726725043507,-1070.02,0.00012896,2]
[338539550,1726725043516,-975.49,0.00012896,2]
[338539552,1726725043526,-1223.42,0.00012896,2]
[338539554,1726725043535,-2047.04,0.00012896,2]
[338539556,1726725043546,-1957.87,0.00012896,2]
[338539558,1726725043555,-920.39,0.00012896,2]
[338539560,1726725043564,-2279.95,0.00012896,2]
[338539562,1726725043574,-550.06,0.00012896,2]
[338539564,1726725043583,-1966.99,0.00012896,2]
[338539566,1726725043592,-1074.53,0.00012896,2]
[338539568,1726725043601,-3872.47,0.00012896,2]
[338539570,1726725043611,-1950.03,0.00012896,2]
[338539572,1726725043619,-2469.92,0.00012896,2]
[338539574,1726725043630,-672.64,0.00012896,2]
[338539576,1726725043639,-691.54,0.00012896,2]
[338539578,1726725043648,-1840.53,0.00012896,2]